fUSD/lending_fUSD_20241016
["ID","MTS","AMOUNT","RATE_DAILY","PERIOD"]
[340362541,1729090244013,-296.211603,0.00023858,7]
[340362542,1729090244024,-296.211603,0.00023858,7]
[340362543,1729090244035,-785.418579,0.00023858,7]
[340362544,1729090244046,-785.418579,0.00023858,7]
[340362545,1729090244057,-534.876548,0.00023858,7]
[340362546,1729090244067,-534.876548,0.00023858,7]
[340362547,1729090244077,-231.089721,0.00023858,7]
[340362548,1729090244088,-218.37,0.00023858,7]
[340362549,1729090244098,-231.089721,0.00023858,7]
[340362550,1729090244108,-218.37,0.00023858,7]
[340362551,1729090244119,-202.11168751,0.00023867,7]
[340362552,1729090244129,-150.0,0.00023867,2]
[340362553,1729090244139,-3585.03,0.00023867,2]
[340362554,1729090244150,-3585.03,0.00023867,2]
[340362555,1729090244160,-646.0,0.00023868,2]
[340362556,1729090244170,-398378.44926009,0.00023868,10]
[340362557,1729090244423,-151.0,0.00023868,7]
[340362558,1729090244435,-157.748192,0.00023868,7]
[340362559,1729090244447,-265.476483,0.00023868,7]
[340362560,1729090244458,-151.0,0.00023868,7]
[340362561,1729090244470,-265.476483,0.00023868,7]
[340362562,1729090244480,-151.0,0.00023868,7]
[340362563,1729090244489,-151.0,0.00023868,7]
[340362564,1729090244499,-205.084029,0.00023868,7]
[340362565,1729090244512,-288.435212,0.00023868,7]
[340362566,1729090244525,-205.084029,0.00023868,7]
[340362567,1729090244535,-151.0,0.00023868,7]
[340362568,1729090244546,-151.0,0.00023868,7]
[340362569,1729090244556,-1099.523206,0.00023868,7]
[340362570,1729090244566,-632.619884,0.00023868,7]
[340362571,1729090244576,-211.722561,0.00023868,7]
[340362572,1729090244586,-1099.523206,0.00023868,7]
[340362573,1729090244597,-211.722561,0.00023868,7]
[340362574,1729090244607,-632.619884,0.00023868,7]
[340362575,1729090244616,-151.0,0.00023868,7]
[340362576,1729090244627,-151.0,0.00023868,7]
[340362577,1729090244638,-151.0,0.00023868,7]
[340362578,1729090244648,-151.0,0.00023868,7]
[340362579,1729090244659,-151.0,0.00023868,7]
[340362580,1729090244669,-205.247859,0.00023868,7]
[340362581,1729090244680,-151.0,0.00023868,7]
[340362582,1729090244691,-6911.125232,0.00023868,7]
[340362583,1729090244701,-205.247859,0.00023868,7]
[340362584,1729090244710,-151.0,0.00023868,7]
[340362585,1729090244720,-161.98987,0.00023868,7]
[340362586,1729090244731,-151.0,0.00023868,7]
[340362587,1729090244741,-367.046569,0.00023868,7]
[340362588,1729090244751,-151.0,0.00023868,7]
[340362589,1729090244762,-367.046569,0.00023868,7]
[340362590,1729090244775,-151.0,0.00023868,7]
[340362591,1729090244790,-151.0,0.00023868,7]
[340362592,1729090244800,-151.0,0.00023868,7]
[340362593,1729090244811,-151.0,0.00023868,7]
[340362594,1729090244823,-231.675069,0.00023868,7]
[340362595,1729090244833,-231.675069,0.00023868,7]
[340362596,1729090244844,-151.0,0.00023868,7]
[340362597,1729090244856,-151.0,0.00023868,7]
[340362598,1729090244867,-535.400408,0.00023868,7]
[340362599,1729090244878,-535.400408,0.00023868,7]
[340362600,1729090244890,-151.0,0.00023868,7]
[340362601,1729090244901,-151.0,0.00023868,7]
[340362602,1729090244912,-2685.327383,0.00023868,7]
[340362603,1729090244922,-2685.327383,0.00023868,7]
[340362604,1729090244933,-280.581335,0.00023868,7]
[340362605,1729090244944,-280.581335,0.00023868,7]
[340362606,1729090244955,-384.094243,0.00023868,7]
[340362607,1729090244965,-384.094243,0.00023868,7]
[340362608,1729090244975,-189.786173,0.00023868,7]
[340362609,1729090244986,-189.786173,0.00023868,7]
[340362610,1729090244996,-1800.6591,0.00023868,7]
[340362611,1729090245006,-1800.6591,0.00023868,7]
[340362612,1729090245015,-3931.467695,0.00023868,7]
[340362613,1729090245033,-311.333139,0.00023868,7]
[340362614,1729090245044,-151.0,0.00023868,7]
[340362615,1729090245054,-3931.467695,0.00023868,7]
[340362616,1729090245064,-275.086039,0.00023868,7]
[340362617,1729090245075,-311.333139,0.00023868,7]
[340362618,1729090245086,-275.086039,0.00023868,7]
[340362619,1729090245096,-232.57071,0.00023868,7]
[340362620,1729090245107,-232.57071,0.00023868,7]
[340362621,1729090245117,-279.84086,0.00023868,7]
[340362622,1729090245127,-279.84086,0.00023868,7]
[340362623,1729090245137,-178.43074,0.00023868,7]
[340362624,1729090245146,-178.43074,0.00023868,7]
[340362625,1729090245156,-296.211603,0.00023868,7]
[340362626,1729090245166,-296.211603,0.00023868,7]
[340362627,1729090245176,-785.418579,0.00023868,7]
[340362628,1729090245189,-785.418579,0.00023868,7]
[340362629,1729090245199,-534.876548,0.00023868,7]
[340362630,1729090245208,-534.876548,0.00023868,7]
[340362631,1729090245218,-231.089721,0.00023868,7]
[340362632,1729090245228,-218.37,0.00023868,7]
[340362633,1729090245237,-231.089721,0.00023868,7]
[340362634,1729090245247,-218.37,0.00023868,7]
[340362635,1729090245256,-151.0,0.00023869,7]
[340362636,1729090245266,-268.941669,0.00023869,7]
[340362637,1729090245276,-268.941669,0.00023869,7]
[340362638,1729090245286,-217.359221,0.00023869,7]
[340362639,1729090245295,-217.359221,0.00023869,7]
[340362640,1729090245305,-151.0,0.00023869,7]
[340362641,1729090245314,-530.67712,0.00023869,7]
[340362642,1729090245323,-530.67712,0.00023869,7]
[340362643,1729090245335,-151.0,0.0002387,7]
[340362644,1729090245345,-268.941669,0.0002387,7]
[340362645,1729090245355,-268.941669,0.0002387,7]
[340362646,1729090245364,-217.359221,0.0002387,7]
[340362647,1729090245374,-217.359221,0.0002387,7]
[340362648,1729090245384,-151.0,0.0002387,7]
[340362649,1729090245394,-1000.0,0.0002387,2]
[340362650,1729090245404,-530.67712,0.0002387,7]
[340362651,1729090245414,-530.67712,0.0002387,7]
[340362652,1729090245424,-151.0,0.0002387,7]
[340362653,1729090245433,-376.052264,0.0002387,7]
[340362654,1729090245443,-376.052264,0.0002387,7]
[340362655,1729090245452,-151.0,0.0002387,7]
[340362656,1729090245461,-151.0,0.0002387,7]
[340362657,1729090245471,-262.93427,0.0002387,7]
[340362658,1729090245480,-151.0,0.0002387,7]
[340362659,1729090245490,-481.670818,0.0002387,7]
[340362660,1729090245499,-262.93427,0.0002387,7]
[340362661,1729090245509,-481.670818,0.0002387,7]
[340362662,1729090245519,-151.0,0.0002387,7]
[340362664,1729090245529,-1099.523206,0.0002387,7]
[340362666,1729090245539,-632.619884,0.0002387,7]
[340362668,1729090245549,-211.722561,0.0002387,7]
[340362670,1729090245558,-1099.523206,0.0002387,7]
[340362671,1729090245568,-211.722561,0.0002387,7]
[340362673,1729090245578,-632.619884,0.0002387,7]
[340362674,1729090245587,-151.0,0.0002387,7]
[340362675,1729090245596,-151.0,0.0002387,7]
[340362676,1729090245606,-151.0,0.0002387,7]
[340362677,1729090245615,-151.0,0.0002387,7]
[340362678,1729090245625,-151.0,0.0002387,7]
[340362679,1729090245635,-151.0,0.0002387,7]
[340362680,1729090245644,-151.0,0.0002387,7]
[340362681,1729090245654,-205.247859,0.0002387,7]
[340362682,1729090245663,-151.0,0.0002387,7]
[340362684,1729090245673,-6911.125232,0.0002387,7]
[340362685,1729090245682,-205.247859,0.0002387,7]
[340362686,1729090245693,-151.0,0.0002387,7]
[340362687,1729090245702,-151.0,0.0002387,7]
[340362688,1729090245712,-367.046569,0.0002387,7]
[340362689,1729090245722,-151.0,0.0002387,7]
[340362690,1729090245731,-367.046569,0.0002387,7]
[340362691,1729090245741,-151.0,0.0002387,7]
[340362692,1729090245750,-151.0,0.0002387,7]
[340362693,1729090245760,-151.0,0.0002387,7]
[340362694,1729090245770,-158.457949,0.0002387,7]
[340362695,1729090245781,-231.675069,0.0002387,7]
[340362696,1729090245792,-231.675069,0.0002387,7]
[340362697,1729090245801,-280.581335,0.0002387,7]
[340362698,1729090245810,-280.581335,0.0002387,7]
[340362699,1729090245820,-500.0,0.00023873,2]
[340362700,1729090245830,-3585.03,0.00023878,2]
[340362701,1729090245840,-19658.0,0.00023879,3]
[340362702,1729090245849,-500.0,0.00023879,2]
[340362703,1729090245860,-151.0,0.00023879,7]
[340362704,1729090245869,-367.046569,0.00023879,7]
[340362705,1729090245879,-151.0,0.00023879,7]
[340362706,1729090245888,-367.046569,0.00023879,7]
[340362707,1729090245898,-151.0,0.00023879,7]
[340362708,1729090245907,-151.0,0.00023879,7]
[340362709,1729090245916,-151.0,0.00023879,7]
[340362710,1729090245926,-231.675069,0.00023879,7]
[340362711,1729090245936,-231.675069,0.00023879,7]
[340362712,1729090245946,-151.0,0.00023879,7]
[340362713,1729090245956,-151.0,0.00023879,7]
[340362714,1729090245966,-535.400408,0.00023879,7]
[340362715,1729090245976,-535.400408,0.00023879,7]
[340362716,1729090245985,-151.0,0.00023879,7]
[340362717,1729090245995,-151.0,0.00023879,7]
[340362718,1729090246005,-2685.327383,0.00023879,7]
[340362719,1729090246014,-2685.327383,0.00023879,7]
[340362720,1729090246025,-280.581335,0.00023879,7]
[340362721,1729090246034,-280.581335,0.00023879,7]
[340362722,1729090246044,-384.094243,0.00023879,7]
[340362723,1729090246054,-384.094243,0.00023879,7]
[340362724,1729090246063,-189.786173,0.00023879,7]
[340362725,1729090246072,-189.786173,0.00023879,7]
[340362726,1729090246082,-1800.6591,0.00023879,7]
[340362727,1729090246092,-1800.6591,0.00023879,7]
[340362728,1729090246101,-3931.467695,0.00023879,7]
[340362729,1729090246111,-311.333139,0.00023879,7]
[340362730,1729090246120,-151.0,0.00023879,7]
[340362731,1729090246131,-3931.467695,0.00023879,7]
[340362732,1729090246141,-275.086039,0.00023879,7]
[340362733,1729090246150,-311.333139,0.00023879,7]
[340362734,1729090246160,-275.086039,0.00023879,7]
[340362735,1729090246170,-232.57071,0.00023879,7]
[340362736,1729090246179,-232.57071,0.00023879,7]
[340362737,1729090246189,-279.84086,0.00023879,7]
[340362738,1729090246199,-279.84086,0.00023879,7]
[340362739,1729090246208,-178.43074,0.00023879,7]
[340362740,1729090246217,-178.43074,0.00023879,7]
[340362741,1729090246227,-296.211603,0.00023879,7]
[340362742,1729090246237,-296.211603,0.00023879,7]
[340362743,1729090246247,-785.418579,0.00023879,7]
[340362744,1729090246257,-785.418579,0.00023879,7]
[340362745,1729090246266,-534.876548,0.00023879,7]
[340362746,1729090246278,-534.876548,0.00023879,7]
[340362747,1729090246287,-231.089721,0.00023879,7]
[340362748,1729090246297,-218.37,0.00023879,7]
[340362750,1729090246307,-231.089721,0.00023879,7]
[340362751,1729090246316,-218.37,0.00023879,7]
[340362752,1729090246327,-83898.0,0.00023879,3]
[340362753,1729090246337,-41706.8,0.00023879,3]
[340362754,1729090246346,-151.0,0.0002388,7]
[340362755,1729090246355,-151.0,0.0002388,7]
[340362756,1729090246365,-233.713239,0.0002388,7]
[340362757,1729090246375,-233.713239,0.0002388,7]
[340362758,1729090246384,-151.0,0.0002388,7]
[340362759,1729090246394,-308.956919,0.0002388,7]
[340362760,1729090246403,-308.956919,0.0002388,7]
[340362761,1729090246413,-2952.163839,0.0002388,7]
[340362762,1729090246422,-2952.163839,0.0002388,7]
[340362763,1729090246431,-151.0,0.0002388,7]
[340362764,1729090246441,-151.0,0.0002388,7]
[340362765,1729090246451,-151.0,0.0002388,7]
[340362766,1729090246461,-217.765445,0.0002388,7]
[340362767,1729090246470,-151.0,0.0002388,7]
[340362768,1729090246480,-151.0,0.0002388,7]
[340362769,1729090246490,-151.0,0.0002388,7]
[340362770,1729090246499,-151.0,0.0002388,7]
[340362771,1729090246508,-151.0,0.0002388,7]
[340362772,1729090246518,-260.815285,0.0002388,7]
[340362773,1729090246529,-260.815285,0.0002388,7]
[340362774,1729090246538,-158.892899,0.0002388,7]
[340362775,1729090246548,-268.941669,0.0002388,7]
[340362776,1729090246558,-268.941669,0.0002388,7]
[340362777,1729090246567,-151.0,0.0002388,7]
[340362778,1729090246577,-265.476483,0.0002388,7]
[340362779,1729090246586,-151.0,0.0002388,7]
[340362780,1729090246595,-265.476483,0.0002388,7]
[340362781,1729090246605,-151.0,0.0002388,7]
[340362782,1729090246614,-217.359221,0.0002388,7]
[340362783,1729090246623,-217.359221,0.0002388,7]
[340362784,1729090246633,-151.0,0.0002388,7]
[340362785,1729090246642,-205.084029,0.0002388,7]
[340362786,1729090246651,-151.0,0.0002388,7]
[340362787,1729090246661,-205.084029,0.0002388,7]
[340362788,1729090246670,-151.0,0.0002388,7]
[340362789,1729090246679,-530.67712,0.0002388,7]
[340362790,1729090246688,-151.0,0.0002388,7]
[340362791,1729090246698,-530.67712,0.0002388,7]
[340362792,1729090246707,-237.958686,0.0002388,7]
[340362793,1729090246717,-237.958686,0.0002388,7]
[340362794,1729090246727,-821.174344,0.0002388,7]
[340362795,1729090246736,-821.174344,0.0002388,7]
[340362796,1729090246746,-151.0,0.0002388,7]
[340362797,1729090246756,-1553.791712,0.0002388,7]
[340362798,1729090246766,-160.13021,0.0002388,7]
[340362799,1729090246780,-151.0,0.0002388,7]
[340362800,1729090246790,-151.0,0.0002388,7]
[340362801,1729090246800,-151.0,0.0002388,7]
[340362802,1729090246809,-151.0,0.0002388,7]
[340362803,1729090246819,-151.0,0.0002388,7]
[340362804,1729090246829,-151.0,0.0002388,7]
[340362805,1729090246838,-244.898128,0.0002388,7]
[340362806,1729090246848,-244.898128,0.0002388,7]
[340362807,1729090246859,-151.0,0.0002388,7]
[340362808,1729090246870,-170.522692,0.0002388,7]
[340362809,1729090246879,-273.625234,0.0002388,7]
[340362810,1729090246890,-273.625234,0.0002388,7]
[340362811,1729090246900,-151.0,0.0002388,7]
[340362812,1729090246909,-151.0,0.0002388,7]
[340362813,1729090246919,-151.0,0.0002388,7]
[340362814,1729090246928,-151.0,0.0002388,7]
[340362815,1729090246938,-376.052264,0.0002388,7]
[340362816,1729090246948,-376.052264,0.0002388,7]
[340362817,1729090246958,-151.0,0.0002388,7]
[340362818,1729090246967,-151.0,0.0002388,7]
[340362819,1729090246976,-262.93427,0.0002388,7]
[340362820,1729090246985,-151.0,0.0002388,7]
[340362821,1729090246994,-481.670818,0.0002388,7]
[340362822,1729090247004,-262.93427,0.0002388,7]
[340362823,1729090247015,-481.670818,0.0002388,7]
[340362824,1729090247025,-151.0,0.0002388,7]
[340362825,1729090247034,-474.173345,0.0002388,7]
[340362826,1729090247044,-474.173345,0.0002388,7]
[340362827,1729090247053,-1160.869238,0.0002388,7]
[340362828,1729090247063,-1160.869238,0.0002388,7]
[340362829,1729090247072,-1099.523206,0.0002388,7]
[340362830,1729090247081,-632.619884,0.0002388,7]
[340362831,1729090247091,-211.722561,0.0002388,7]
[340362832,1729090247100,-1099.523206,0.0002388,7]
[340362833,1729090247110,-211.722561,0.0002388,7]
[340362834,1729090247120,-632.619884,0.0002388,7]
[340362835,1729090247129,-151.0,0.0002388,7]
[340362836,1729090247139,-151.0,0.0002388,7]
[340362837,1729090247149,-151.0,0.0002388,7]
[340362838,1729090247159,-151.0,0.0002388,7]
[340362839,1729090247169,-151.0,0.0002388,7]
[340362840,1729090247178,-151.0,0.0002388,7]
[340362841,1729090247187,-151.0,0.0002388,7]
[340362842,1729090247197,-205.247859,0.0002388,7]
[340362843,1729090247206,-151.0,0.0002388,7]
[340362844,1729090247216,-205.247859,0.0002388,7]
[340362845,1729090247225,-6911.125232,0.0002388,7]
[340362846,1729090247234,-151.0,0.0002388,7]
[340362847,1729090247244,-1000.0,0.0002388,2]
[340362848,1729090247253,-1000.0,0.0002388,2]
[340362849,1729090247263,-1000.0,0.0002388,2]
[340362850,1729090247273,-1000.0,0.0002388,2]
[340362851,1729090247282,-1000.0,0.0002388,2]
[340362852,1729090247292,-1000.0,0.0002388,2]
[340362853,1729090247302,-300.8041,0.0002388,2]
[340362854,1729090247311,-195.47382231,0.00023886,2]
[340362855,1729090247321,-180.82374899,0.00023886,4]
[340362856,1729090247331,-9562.76725,0.000239,2]
[340362857,1729090247341,-7647.83876165,0.00023904,10]
[340362858,1729090247350,-308.76200152,0.00023933,2]
[340362859,1729090247360,-167.0,0.00023941,2]
[340362860,1729090247369,-151.0,0.0002396,7]
[340362861,1729090247379,-273.625234,0.0002396,7]
[340362862,1729090247388,-273.625234,0.0002396,7]
[340362863,1729090247397,-151.0,0.0002396,7]
[340362864,1729090247407,-151.0,0.0002396,7]
[340362865,1729090247416,-151.0,0.0002396,7]
[340362866,1729090247426,-376.052264,0.0002396,7]
[340362867,1729090247435,-376.052264,0.0002396,7]
[340362868,1729090247444,-151.0,0.0002396,7]
[340362869,1729090247453,-151.0,0.0002396,7]
[340362870,1729090247463,-262.93427,0.0002396,7]
[340362871,1729090247472,-151.0,0.0002396,7]
[340362872,1729090247482,-481.670818,0.0002396,7]
[340362873,1729090247491,-262.93427,0.0002396,7]
[340362874,1729090247500,-481.670818,0.0002396,7]
[340362875,1729090247509,-151.0,0.0002396,7]
[340362876,1729090247518,-1160.869238,0.0002396,7]
[340362877,1729090247529,-1160.869238,0.0002396,7]
[340362878,1729090247539,-1099.523206,0.0002396,7]
[340362879,1729090247548,-632.619884,0.0002396,7]
[340362880,1729090247558,-211.722561,0.0002396,7]
[340362881,1729090247567,-1099.523206,0.0002396,7]
[340362882,1729090247577,-211.722561,0.0002396,7]
[340362883,1729090247587,-632.619884,0.0002396,7]
[340362884,1729090247596,-151.0,0.0002396,7]
[340362885,1729090247606,-151.0,0.0002396,7]
[340362886,1729090247615,-151.0,0.0002396,7]
[340362887,1729090247624,-151.0,0.0002396,7]
[340362888,1729090247633,-151.0,0.0002396,7]
[340362889,1729090247643,-151.0,0.0002396,7]
[340362890,1729090247653,-151.0,0.0002396,7]
[340362891,1729090247663,-205.247859,0.0002396,7]
[340362892,1729090247672,-151.0,0.0002396,7]
[340362893,1729090247682,-205.247859,0.0002396,7]
[340362894,1729090247691,-6911.125232,0.0002396,7]
[340362895,1729090247701,-151.0,0.0002396,7]
[340362896,1729090247711,-151.0,0.0002396,7]
[340362897,1729090247721,-367.046569,0.0002396,7]
[340362898,1729090247731,-151.0,0.0002396,7]
[340362899,1729090247741,-367.046569,0.0002396,7]
[340362900,1729090247751,-159.543913,0.0002396,7]
[340362901,1729090247760,-151.0,0.0002396,7]
[340362902,1729090247770,-151.0,0.0002396,7]
[340362903,1729090247782,-231.675069,0.0002396,7]
[340362904,1729090247791,-231.675069,0.0002396,7]
[340362905,1729090247801,-296.122938,0.0002396,7]
[340362906,1729090247810,-151.0,0.0002396,7]
[340362907,1729090247820,-535.400408,0.0002396,7]
[340362908,1729090247830,-535.400408,0.0002396,7]
[340362909,1729090247839,-151.0,0.0002396,7]
[340362910,1729090247848,-151.0,0.0002396,7]
[340362911,1729090247859,-2685.327383,0.0002396,7]
[340362912,1729090247868,-2685.327383,0.0002396,7]
[340362913,1729090247878,-280.581335,0.0002396,7]
[340362914,1729090247887,-280.581335,0.0002396,7]
[340362915,1729090247896,-384.094243,0.0002396,7]
[340362916,1729090247906,-384.094243,0.0002396,7]
[340362917,1729090247915,-189.786173,0.0002396,7]
[340362918,1729090247924,-189.786173,0.0002396,7]
[340362919,1729090247934,-1800.6591,0.0002396,7]
[340362920,1729090247943,-1800.6591,0.0002396,7]
[340362921,1729090247953,-3931.467695,0.0002396,7]
[340362922,1729090247962,-311.333139,0.0002396,7]
[340362923,1729090247970,-151.0,0.0002396,7]
[340362924,1729090247980,-3931.467695,0.0002396,7]
[340362925,1729090247989,-275.086039,0.0002396,7]
[340362926,1729090248000,-311.333139,0.0002396,7]
[340362927,1729090248010,-275.086039,0.0002396,7]
[340362928,1729090248022,-232.57071,0.0002396,7]
[340362929,1729090248032,-232.57071,0.0002396,7]
[340362930,1729090248041,-279.84086,0.0002396,7]
[340362931,1729090248051,-279.84086,0.0002396,7]
[340362932,1729090248061,-178.43074,0.0002396,7]
[340362933,1729090248071,-178.43074,0.0002396,7]
[340362934,1729090248080,-296.211603,0.0002396,7]
[340362935,1729090248090,-296.211603,0.0002396,7]
[340362936,1729090248099,-785.418579,0.0002396,7]
[340362937,1729090248110,-785.418579,0.0002396,7]
[340362938,1729090248119,-3585.03,0.0002396,2]
[340362939,1729090248129,-534.876548,0.0002396,7]
[340362940,1729090248138,-534.876548,0.0002396,7]
[340362941,1729090248148,-231.089721,0.0002396,7]
[340362942,1729090248157,-218.37,0.0002396,7]
[340362943,1729090248167,-231.089721,0.0002396,7]
[340362944,1729090248177,-87255.49,0.0002396,3]
[340362945,1729090248187,-151.0,0.0002397,7]
[340362946,1729090248197,-151.0,0.0002397,7]
[340362947,1729090248207,-233.713239,0.0002397,7]
[340362948,1729090248217,-233.713239,0.0002397,7]
[340362949,1729090248227,-1000.0,0.0002397,2]
[340362950,1729090248237,-151.0,0.0002397,7]
[340362951,1729090248247,-308.956919,0.0002397,7]
[340362952,1729090248257,-308.956919,0.0002397,7]
[340362953,1729090248267,-2952.163839,0.0002397,7]
[340362954,1729090248278,-2952.163839,0.0002397,7]
[340362955,1729090248288,-260.815285,0.0002397,7]
[340362956,1729090248298,-260.815285,0.0002397,7]
[340362957,1729090248307,-268.941669,0.0002397,7]
[340362958,1729090248316,-268.941669,0.0002397,7]
[340362959,1729090248327,-151.0,0.0002397,7]
[340362960,1729090248337,-265.476483,0.0002397,7]
[340362961,1729090248346,-265.476483,0.0002397,7]
[340362962,1729090248356,-151.0,0.0002397,7]
[340362963,1729090248367,-217.359221,0.0002397,7]
[340362964,1729090248376,-217.359221,0.0002397,7]
[340362965,1729090248386,-151.0,0.0002397,7]
[340362966,1729090248396,-205.084029,0.0002397,7]
[340362967,1729090248406,-151.0,0.0002397,7]
[340362968,1729090248416,-205.084029,0.0002397,7]
[340362969,1729090248426,-919.67315751,0.0002397,2]
[340362970,1729090248436,-151.0,0.0002397,7]
[340362971,1729090248446,-530.67712,0.0002397,7]
[340362972,1729090248456,-151.0,0.0002397,7]
[340362973,1729090248465,-530.67712,0.0002397,7]
[340362974,1729090248476,-151.0,0.0002397,7]
[340362975,1729090248486,-151.0,0.0002397,7]
[340362976,1729090248496,-781.795626,0.0002397,7]
[340362977,1729090248505,-781.795626,0.0002397,7]
[340362978,1729090248515,-582.948746,0.0002397,7]
[340362979,1729090248526,-582.948746,0.0002397,7]
[340362980,1729090248536,-237.958686,0.0002397,7]
[340362981,1729090248545,-237.958686,0.0002397,7]
[340362982,1729090248555,-821.174344,0.0002397,7]
[340362983,1729090248744,-821.174344,0.0002397,7]
[340362984,1729090248755,-1553.791712,0.0002397,7]
[340362985,1729090248765,-151.0,0.0002397,7]
[340362986,1729090248776,-151.0,0.0002397,7]
[340362987,1729090248793,-151.0,0.0002397,7]
[340362988,1729090248803,-151.0,0.0002397,7]
[340362989,1729090248813,-151.0,0.0002397,7]
[340362990,1729090248823,-151.0,0.0002397,7]
[340362991,1729090248832,-151.0,0.0002397,7]
[340362992,1729090248842,-244.898128,0.0002397,7]
[340362993,1729090248852,-244.898128,0.0002397,7]
[340362994,1729090248863,-192.61303116,0.00023976,2]
[340362995,1729090248873,-151.0,0.00023977,7]
[340362996,1729090248883,-474.173345,0.00023977,7]
[340362997,1729090248893,-474.173345,0.00023977,7]
[340362998,1729090248903,-151.0,0.00023979,7]
[340362999,1729090248914,-151.0,0.00023979,7]
[340363000,1729090248923,-151.0,0.00023979,7]
[340363001,1729090248934,-151.0,0.00023979,7]
[340363002,1729090248944,-151.0,0.00023979,7]
[340363003,1729090248954,-151.0,0.00023979,7]
[340363004,1729090248964,-150.0,0.00023979,2]
[340363005,1729090248974,-270.32655,0.0002398,7]
[340363006,1729090248983,-12151.5532481,0.00023982,2]
[340363007,1729090248994,-16082.9865099,0.00023982,2]
[340363008,1729090249003,-150.0,0.00023985,7]
[340363009,1729090249014,-150.0,0.00023985,7]
[340363010,1729090249025,-1401137.41224737,0.00023986,5]
[340363011,1729090249323,-261.4769987,0.00023986,5]
[340363012,1729090249336,-464.504,0.00023986,5]
[340363013,1729090249348,-1041.4084361,0.00023986,5]
[340363014,1729090249359,-1806.49803386,0.00023986,5]
[340363015,1729090249371,-294.14994472,0.00023986,5]
[340363016,1729090249391,-218.37,0.0002396,7]
[340363017,1729090249401,-275.37999984,0.00023986,5]
[340363018,1729090249695,-500.0,0.00023794,2]
[340363019,1729090249706,-343.96865319,0.00023794,2]
[340363020,1729090249716,-9175.38210626,0.00023986,5]
[340363021,1729090249728,-281.818872,0.00023986,5]
[340363022,1729090249740,-15177.34972806,0.00023986,5]
[340363023,1729090249750,-151.0,0.00023986,7]
[340363024,1729090249760,-273.625234,0.00023986,7]
[340363025,1729090249771,-273.625234,0.00023986,7]
[340363026,1729090249783,-151.0,0.00023986,7]
[340363027,1729090249793,-151.0,0.00023986,7]
[340363028,1729090249803,-151.0,0.00023986,7]
[340363029,1729090249813,-376.052264,0.00023986,7]
[340363030,1729090249823,-376.052264,0.00023986,7]
[340363031,1729090249832,-155.767794,0.00023986,7]
[340363032,1729090249842,-151.0,0.00023986,7]
[340363033,1729090249853,-262.93427,0.00023986,7]
[340363034,1729090249864,-151.0,0.00023986,7]
[340363035,1729090249874,-481.670818,0.00023986,7]
[340363036,1729090249884,-262.93427,0.00023986,7]
[340363037,1729090249894,-481.670818,0.00023986,7]
[340363038,1729090249903,-156.659632,0.00023986,7]
[340363039,1729090249913,-1160.869238,0.00023986,7]
[340363040,1729090249923,-1160.869238,0.00023986,7]
[340363041,1729090249933,-1099.523206,0.00023986,7]
[340363042,1729090249943,-632.619884,0.00023986,7]
[340363043,1729090249953,-211.722561,0.00023986,7]
[340363044,1729090249963,-1099.523206,0.00023986,7]
[340363045,1729090249972,-211.722561,0.00023986,7]
[340363046,1729090249982,-632.619884,0.00023986,7]
[340363047,1729090249992,-151.0,0.00023986,7]